[Event "Polish Youth 1st League 2022"]
[Site "Lublin"]
[Date "2022.06.26"]
[Round "2.26"]
[White "Lysakowski, Kamil"]
[Black "Dziewonski, Dariusz"]
[Result "0-1"]
[ECO "B22"]
[WhiteElo "1859"]
[BlackElo "1976"]
[Annotator "NA RC"]
[PlyCount "92"]
[EventDate "2022.06.24"]
[EventType "team-tourn"]
[EventCountry "POL"]
[SourceTitle "playchess.com"]
[Source "ChessBase"]
[SourceQuality "1"]
[TimeControl "40/5400+30:1800+30"]

1. e4 {[%emt 0:00:02]} c5 {[%emt 0:00:07]} 2. c3 {[%emt 0:00:13]} Nf6 {[%emt 0:00:25]} 3. e5 {[%emt 0:00:03]} Nd5 {[%emt 0:00:05]} 4. d4 {[%emt 0:00:04]} cxd4 {[%emt 0:01:42]} 5. cxd4 {[%emt 0:00:03]} e6 {[%emt 0:00:10]} 6. Nf3 {[%emt 0:00:09]} d6 {[%emt 0:00:07]} 7. Bc4 {[%emt 0:00:08]} Nb6 {[%emt 0:00:12]} 8. Bb3 {[%emt 0:12:38]} dxe5 {[%emt 0:00:09]} 9. dxe5 {[%emt 0:00:01]} Qxd1+ {[%emt 0:05:00]} 10. Bxd1 {[%emt 0:00:05]} Bd7 {[%emt 0:07:36]} 11. Nc3 {[%emt 0:01:39]} Bc6 {[%emt 0:01:45]} 12. O-O {[%emt 0:00:22]} Bc5 {[%emt 0:02:09]} 13. Re1 {[%emt 0:01:07]} O-O {[%emt 0:03:45]} 14. Ne4 {[%emt 0:02:02]} Bxe4 {[%emt 0:01:10]} 15. Rxe4 {[%emt 0:00:04]} Nc6 {[%emt 0:00:37]} 16. Be3 {[%emt 0:01:06]} Bxe3 {[%emt 0:01:34]} 17. Rxe3 {[%emt 0:00:07]} Rfd8 {[%emt 0:02:47]} 18. Bb3 {[%emt 0:02:18]} h6 {[%emt 0:05:28]} 19. Kf1 {[%emt 0:09:12]} Rd7 {[%emt 0:06:44]} 20. Rc1 {[%emt 0:17:05]} Rad8 {[%emt 0:03:22]} 21. a3 {[%emt 0:13:09]} Kf8 {[%emt 0:02:51]} 22. g3 {[%emt 0:01:25]} Ke7 {[%emt 0:02:11]} 23. Rec3 {[%emt 0:05:31]} g5 {[%emt 0:11:37]} 24. h3 {[%emt 0:02:37]} Nd4 {[%emt 0:12:33]} 25. Nxd4 {[%emt 0:03:30]} Rxd4 {[%emt 0:02:02]} 26. Rc7+ {[%emt 0:02:18]} R8d7 {[%emt 0:00:16]} 27. Rxd7+ {[%emt 0:01:01]} Kxd7 {[%emt 0:00:03]} 28. Ke2 {[%emt 0:09:14]} Re4+ {[%emt 0:01:54]} 29. Kf3 {[%emt 0:00:05]} Rxe5 {[%emt 0:00:21]} 30. Kg4 {[%emt 0:00:46]} Rf5 {[%emt 0:06:45]} 31. Rc2 {[%emt 0:00:52]} Rf6 {[%emt 0:02:33]} 32. Rd2+ {[%emt 0:02:10]} Ke7 {[%emt 0:00:17]} 33. Rc2 {[%emt 0:03:42]} Kd6 {[%emt 0:02:34]} 34. Kh5 Nd5 {[%emt 0:02:26]} 35. Bxd5 {[%emt 0:10:49]} exd5 {[%emt 0:01:13]} 36. Rc8 {[%emt 0:00:19]} d4 {[%emt 0:04:37]} 37. Rb8 {[%emt 0:00:58]} b6 {[%emt 0:00:18]} 38. Ra8 a5 {[%emt 0:00:12]} 39. f4 {[%emt 0:02:21]} gxf4 {[%emt 0:00:49]} 40. gxf4 {[%emt 0:00:00]} Kd5 {[%emt 0:00:00]} 41. Kg4 {[%emt 0:01:00]} Ke4 {[%emt 0:02:47]} 42. Re8+ {[%emt 0:00:07]} Re6 {[%emt 0:01:08]} 43. Rf8 {[%emt 0:00:06]} Rg6+ {[%emt 0:02:42]} 44. Kh5 {[%emt 0:00:35]} Rf6 {[%emt 0:00:07]} 45. Re8+ {[%emt 0:01:34]} Re6 {[%emt 0:01:04]} 46. Rf8 {[%emt 0:00:45]} f5 {[%emt 0:00:14]} 0-1

[Event "Polish Youth 1st League 2022"]
[Site "Lublin"]
[Date "2022.06.26"]
[Round "2.27"]
[White "Maj, Samuel"]
[Black "Musial, Igor"]
[Result "1-0"]
[ECO "D85"]
[WhiteElo "1906"]
[BlackElo "1699"]
[Annotator "NA RC"]
[PlyCount "35"]
[EventDate "2022.06.24"]
[EventType "team-tourn"]
[EventCountry "POL"]
[SourceTitle "playchess.com"]
[Source "ChessBase"]
[SourceQuality "1"]
[TimeControl "40/5400+30:1800+30"]

1. d4 {[%emt 0:00:02]} Nf6 {[%emt 0:00:04]} 2. c4 {[%emt 0:00:02]} g6 {[%emt 0:00:09]} 3. Nc3 {[%emt 0:00:02]} d5 {[%emt 0:00:19]} 4. cxd5 {[%emt 0:00:08]} Nxd5 {[%emt 0:00:10]} 5. Bd2 {[%emt 0:00:08]} Bg7 {[%emt 0:00:03]} 6. e4 {[%emt 0:00:07]} Nxc3 {[%emt 0:00:05]} 7. Bxc3 {[%emt 0:00:03]} O-O {[%emt 0:00:12]} 8. Qd2 {[%emt 0:00:11]} c5 {[%emt 0:00:25]} 9. d5 {[%emt 0:00:07]} Qd6 {[%emt 0:11:29]} 10. f4 {[%emt 0:02:46]} e6 {[%emt 0:14:07]} 11. Bc4 {[%emt 0:09:49]} Bxc3 {[%emt 0:14:22]} 12. bxc3 {[%emt 0:00:37]} exd5 {[%emt 0:03:23]} 13. Bxd5 {[%emt 0:01:17]} Kg7 {[%emt 0:03:02]} 14. Nf3 {[%emt 0:02:06]} Nc6 {[%emt 0:12:37]} 15. O-O {[%emt 0:04:54]} c4 {[%emt 0:10:32]} 16. f5 {[%emt 0:07:18]} f6 {[%emt 0:02:35]} 17. Nd4 {[%emt 0:04:24]} Ne5 {[%emt 0:02:53]} 18. Bxb7 {[%emt 0:04:00]} 1-0

[Event "Polish Youth 1st League 2022"]
[Site "Lublin"]
[Date "2022.06.26"]
[Round "2.28"]
[White "Rozek, Michal"]
[Black "Jamrozik, Maciej"]
[Result "1-0"]
[ECO "B07"]
[WhiteElo "1533"]
[BlackElo "1251"]
[Annotator "NA RC"]
[PlyCount "89"]
[EventDate "2022.06.24"]
[EventType "team-tourn"]
[EventCountry "POL"]
[SourceTitle "playchess.com"]
[Source "ChessBase"]
[SourceQuality "1"]
[TimeControl "40/5400+30:1800+30"]

1. e4 {[%emt 0:00:05]} d6 {[%emt 0:00:04]} 2. d4 {[%emt 0:00:09]} Nf6 {[%emt 0:00:09]} 3. Nc3 {[%emt 0:00:10]} e5 {[%emt 0:00:16]} 4. dxe5 {[%emt 0:01:01]} dxe5 {[%emt 0:00:08]} 5. Qxd8+ {[%emt 0:00:11]} Kxd8 {[%emt 0:00:04]} 6. Bc4 {[%emt 0:00:14]} Ke8 {[%emt 0:01:07]} 7. f3 {[%emt 0:02:10]} c6 {[%emt 0:01:57]} 8. Be3 {[%emt 0:02:46]} Nbd7 {[%emt 0:03:02]} 9. Nh3 {[%emt 0:12:30]} h6 {[%emt 0:04:02]} 10. Nf2 {[%emt 0:02:25]} b5 {[%emt 0:02:53]} 11. Bb3 {[%emt 0:02:23]} a5 {[%emt 0:01:18]} 12. a3 {[%emt 0:01:57]} Bc5 {[%emt 0:02:06]} 13. Bd2 {[%emt 0:10:21]} Bxf2+ {[%emt 0:02:37]} 14. Kxf2 {[%emt 0:00:08]} Nc5 {[%emt 0:01:26]} 15. Ba2 {[%emt 0:04:12]} Be6 {[%emt 0:03:19]} 16. Rhd1 {[%emt 0:06:11]} Ke7 {[%emt 0:10:12]} 17. Ne2 {[%emt 0:09:10]} Bxa2 {[%emt 0:04:12]} 18. Rxa2 {[%emt 0:00:11]} Ne6 {[%emt 0:00:46]} 19. c4 {[%emt 0:04:09]} Rhb8 {[%emt 0:04:57]} 20. Rc1 {[%emt 0:02:28]} Nc5 {[%emt 0:04:05]} 21. Rc2 {[%emt 0:04:21]} bxc4 {[%emt 0:05:15]} 22. Rxc4 {[%emt 0:04:26]} Nd3+ {[%emt 0:00:46]} 23. Ke3 {[%emt 0:12:36]} Nxb2 {[%emt 0:02:35]} 24. Rxc6 {[%emt 0:00:35]} Rb3+ {[%emt 0:08:09]} 25. Kf2 {[%emt 0:09:30]} Nd3+ {[%emt 0:05:48]} 26. Kf1 {[%emt 0:01:53]} Rb1+ {[%emt 0:02:02]} 27. Nc1 {[%emt 0:00:19]} Rab8 {[%emt 0:03:21]} 28. Ke2 {[%emt 0:00:43]} Nf4+ {[%emt 0:00:12]} 29. Bxf4 {[%emt 0:00:19]} exf4 {[%emt 0:00:15]} 30. Nd3 {[%emt 0:00:43]} Rh1 {[%emt 0:06:17]} 31. h3 {[%emt 0:01:38]} g5 {[%emt 0:02:31]} 32. Rc5 {[%emt 0:01:16]} Ra8 {[%emt 0:03:05]} 33. Rb2 {[%emt 0:00:32]} Ra1 {[%emt 0:01:28]} 34. Rb7+ {[%emt 0:02:53]} Ke8 {[%emt 0:03:37]} 35. Rcc7 {[%emt 0:01:03]} Rxa3 {[%emt 0:02:12]} 36. Re7+ {[%emt 0:00:19]} Kd8 {[%emt 0:00:43]} 37. Rxf7 {[%emt 0:00:45]} Ne8 {[%emt 0:00:20]} 38. Rbd7+ {[%emt 0:01:14]} Kc8 {[%emt 0:00:14]} 39. Rde7 {[%emt 0:00:49]} Kd8 {[%emt 0:00:34]} 40. Nc5 {[%emt 0:00:00]} Ra2+ {[%emt 0:00:00]} 41. Kd3 {[%emt 0:02:34]} Ra3+ {[%emt 0:03:51]} 42. Kd4 {[%emt 0:00:59]} Nd6 {[%emt 0:01:03]} 43. Ne6+ {[%emt 0:00:24]} Kc8 {[%emt 0:00:04]} 44. Rf8+ {[%emt 0:00:07]} Ne8 {[%emt 0:00:12]} 45. Rfxe8# {[%emt 0:00:06]} 1-0

[Event "Polish Youth 1st League 2022"]
[Site "Lublin"]
[Date "2022.06.26"]
[Round "2.29"]
[White "Uliasz, Katarzyna"]
[Black "Mroz, Lena"]
[Result "1-0"]
[ECO "A08"]
[WhiteElo "1526"]
[BlackElo "1719"]
[Annotator "NA RC"]
[PlyCount "125"]
[EventDate "2022.06.24"]
[EventType "team-tourn"]
[EventCountry "POL"]
[SourceTitle "playchess.com"]
[Source "ChessBase"]
[SourceQuality "1"]
[TimeControl "40/5400+30:1800+30"]

1. e4 {[%emt 0:00:04]} c5 {[%emt 0:00:11]} 2. Nf3 {[%emt 0:00:06]} e6 {[%emt 0:00:35]} 3. d3 {[%emt 0:00:08]} Nc6 {[%emt 0:00:28]} 4. g3 {[%emt 0:00:10]} Nf6 {[%emt 0:02:50]} 5. Bg2 {[%emt 0:00:40]} d5 {[%emt 0:04:59]} 6. Nbd2 {[%emt 0:00:07]} Be7 {[%emt 0:00:22]} 7. O-O {[%emt 0:00:23]} O-O {[%emt 0:00:41]} 8. Re1 {[%emt 0:01:07]} Qc7 {[%emt 0:05:15]} 9. c3 {[%emt 0:04:19]} Rd8 {[%emt 0:07:28]} 10. Qe2 {[%emt 0:07:35]} b5 {[%emt 0:19:20]} 11. e5 {[%emt 0:08:48]} Nd7 {[%emt 0:01:25]} 12. h4 {[%emt 0:00:30]} a5 {[%emt 0:07:10]} 13. Nf1 {[%emt 0:02:21]} Ba6 {[%emt 0:06:23]} 14. N1h2 {[%emt 0:01:19]} a4 {[%emt 0:10:49]} 15. a3 {[%emt 0:12:15]} Rac8 {[%emt 0:06:13]} 16. Bf4 {[%emt 0:00:20]} Nb6 {[%emt 0:01:49]} 17. Bh3 {[%emt 0:01:14]} h6 {[%emt 0:07:58]} 18. g4 {[%emt 0:03:13]} Kf8 {[%emt 0:06:03]} 19. g5 {[%emt 0:01:04]} Ke8 {[%emt 0:06:15]} 20. gxh6 {[%emt 0:05:51]} gxh6 {[%emt 0:00:20]} 21. Bxh6 {[%emt 0:00:57]} Kd7 {[%emt 0:00:53]} 22. Ng4 {[%emt 0:09:15]} Qb8 {[%emt 0:01:42]} 23. Nf6+ {[%emt 0:05:10]} Kc7 {[%emt 0:00:42]} 24. Ng5 {[%emt 0:01:34]} Bxf6 {[%emt 0:01:11]} 25. exf6 {[%emt 0:00:18]} Rd7 {[%emt 0:00:51]} 26. Nf3 {[%emt 0:10:39]} Kb7 {[%emt 0:00:32]} 27. Ne5 {[%emt 0:00:19]} Nxe5 {[%emt 0:00:27]} 28. Qxe5 {[%emt 0:00:04]} Qxe5 {[%emt 0:00:23]} 29. Rxe5 {[%emt 0:00:02]} Rdd8 {[%emt 0:00:15]} 30. Bg7 {[%emt 0:00:31]} d4 {[%emt 0:01:23]} 31. Bg2+ {[%emt 0:00:52]} Ka7 {[%emt 0:00:09]} 32. Be4 {[%emt 0:00:55]} Bb7 {[%emt 0:00:41]} 33. cxd4 {[%emt 0:03:42]} Rxd4 {[%emt 0:00:26]} 34. Bxb7 {[%emt 0:01:54]} Kxb7 {[%emt 0:00:01]} 35. h5 {[%emt 0:00:01]} Rd5 {[%emt 0:00:59]} 36. Rae1 {[%emt 0:01:42]} Rxe5 {[%emt 0:00:21]} 37. Rxe5 {[%emt 0:00:07]} Nd7 {[%emt 0:00:19]} 38. Rg5 {[%emt 0:00:46]} Rg8 {[%emt 0:01:03]} 39. h6 {[%emt 0:00:25]} Nf8 {[%emt 0:00:13]} 40. Rxc5 {[%emt 0:00:00]} Nh7 {[%emt 0:00:00]} 41. Rxb5+ {[%emt 0:01:03]} Kc6 {[%emt 0:07:11]} 42. Rb4 {[%emt 0:03:45]} Ra8 {[%emt 0:03:43]} 43. Kf1 {[%emt 0:01:52]} Kc7 {[%emt 0:02:04]} 44. Ke2 {[%emt 0:00:43]} Ra5 {[%emt 0:02:12]} 45. f4 {[%emt 0:01:44]} Ra8 {[%emt 0:12:02]} 46. Ke3 {[%emt 0:00:40]} Ra7 {[%emt 0:01:53]} 47. Kd4 {[%emt 0:00:18]} Ra5 {[%emt 0:00:05]} 48. Kc3 {[%emt 0:00:27]} Ra7 {[%emt 0:03:10]} 49. Rb5 {[%emt 0:01:30]} Ra8 {[%emt 0:02:07]} 50. Kc4 {[%emt 0:00:59]} Kc6 {[%emt 0:00:14]} 51. Rb4 {[%emt 0:00:35]} Kc7 {[%emt 0:01:25]} 52. Kb5 {[%emt 0:00:55]} Kd6 {[%emt 0:00:42]} 53. Rxa4 {[%emt 0:00:42]} Rb8+ {[%emt 0:00:09]} 54. Kc4 {[%emt 0:00:04]} Rxb2 {[%emt 0:00:29]} 55. Ra8 {[%emt 0:00:06]} Rf2 {[%emt 0:00:18]} 56. Rh8 {[%emt 0:04:48]} Rxf4+ {[%emt 0:00:17]} 57. Kb5 {[%emt 0:00:07]} Ng5 {[%emt 0:00:59]} 58. h7 {[%emt 0:00:18]} Kc7 {[%emt 0:00:32]} 59. Rc8+ {[%emt 0:00:35]} Kxc8 {[%emt 0:00:32]} 60. h8=Q+ {[%emt 0:00:06]} Kd7 {[%emt 0:00:47]} 61. Qa8 {[%emt 0:01:41]} e5 {[%emt 0:00:30]} 62. Qc6+ {[%emt 0:00:11]} Kd8 {[%emt 0:00:19]} 63. Bf8 {[%emt 0:00:16]} 1-0

[Event "Polish Youth 1st League 2022"]
[Site "Lublin"]
[Date "2022.06.26"]
[Round "2.30"]
[White "Lajdamik, Kinga"]
[Black "Tokarz, Gabriela"]
[Result "0-1"]
[ECO "B53"]
[WhiteElo "1308"]
[BlackElo "1469"]
[Annotator "NA RC"]
[PlyCount "98"]
[EventDate "2022.06.24"]
[EventType "team-tourn"]
[EventCountry "POL"]
[SourceTitle "playchess.com"]
[Source "ChessBase"]
[SourceQuality "1"]
[TimeControl "40/5400+30:1800+30"]

1. e4 {[%emt 0:00:01]} c5 {[%emt 0:00:07]} 2. Nf3 {[%emt 0:00:04]} d6 {[%emt 0:00:05]} 3. d4 {[%emt 0:00:07]} cxd4 {[%emt 0:00:04]} 4. Qxd4 {[%emt 0:00:04]} Nc6 {[%emt 0:00:08]} 5. Bb5 {[%emt 0:00:07]} Bd7 {[%emt 0:00:07]} 6. Bxc6 {[%emt 0:00:06]} Bxc6 {[%emt 0:00:05]} 7. Nc3 {[%emt 0:00:07]} Nf6 {[%emt 0:00:07]} 8. Bg5 {[%emt 0:00:07]} e6 {[%emt 0:00:10]} 9. O-O-O {[%emt 0:00:09]} Be7 {[%emt 0:00:11]} 10. Kb1 {[%emt 0:00:19]} O-O {[%emt 0:00:07]} 11. Rhe1 {[%emt 0:00:36]} Qa5 {[%emt 0:01:02]} 12. Qd2 {[%emt 0:00:10]} Qc7 {[%emt 0:06:47]} 13. Nd4 {[%emt 0:11:47]} Rfd8 {[%emt 0:04:08]} 14. f3 {[%emt 0:11:26]} Rab8 {[%emt 0:04:05]} 15. g4 {[%emt 0:04:33]} b5 {[%emt 0:01:35]} 16. Nce2 {[%emt 0:01:07]} b4 {[%emt 0:06:48]} 17. Ng3 {[%emt 0:01:26]} a5 {[%emt 0:01:49]} 18. Nh5 {[%emt 0:01:37]} Kf8 {[%emt 0:15:50]} 19. Bxf6 {[%emt 0:01:18]} Bxf6 {[%emt 0:00:12]} 20. Nxf6 {[%emt 0:00:05]} gxf6 {[%emt 0:00:06]} 21. Qh6+ {[%emt 0:00:10]} Ke7 {[%emt 0:00:30]} 22. g5 {[%emt 0:02:56]} fxg5 {[%emt 0:03:34]} 23. Qxg5+ {[%emt 0:00:12]} Kd7 {[%emt 0:00:14]} 24. Qg7 {[%emt 0:01:11]} Rf8 {[%emt 0:01:24]} 25. Qxh7 {[%emt 0:00:55]} Kc8 {[%emt 0:01:51]} 26. Qh5 {[%emt 0:04:24]} Kb7 {[%emt 0:01:15]} 27. Qg5 {[%emt 0:16:40]} Rh8 {[%emt 0:03:52]} 28. Qd2 {[%emt 0:01:18]} d5 {[%emt 0:02:00]} 29. e5 {[%emt 0:12:23]} Rh5 {[%emt 0:02:30]} 30. f4 {[%emt 0:00:56]} Rbh8 {[%emt 0:00:29]} 31. Re2 {[%emt 0:01:08]} Bd7 {[%emt 0:05:08]} 32. Rc1 {[%emt 0:02:29]} Qb6 {[%emt 0:09:15]} 33. c3 {[%emt 0:03:21]} Rh3 {[%emt 0:05:00]} 34. Ka1 {[%emt 0:10:17]} Bb5 {[%emt 0:01:33]} 35. Rg2 {[%emt 0:02:44]} Bd3 {[%emt 0:06:10]} 36. Rg3 {[%emt 0:04:59]} Rxg3 {[%emt 0:03:38]} 37. hxg3 {[%emt 0:00:01]} Be4 {[%emt 0:00:19]} 38. Qe3 {[%emt 0:04:49]} Rc8 {[%emt 0:05:07]} 39. c4 {[%emt 0:00:22]} Bg6 {[%emt 0:01:06]} 40. b3 {[%emt 0:00:00]} Be4 {[%emt 0:00:00]} 41. Rd1 {[%emt 0:07:01]} Qc5 {[%emt 0:04:27]} 42. Qe2 {[%emt 0:01:52]} Rg8 {[%emt 0:01:27]} 43. g4 {[%emt 0:02:46]} a4 {[%emt 0:02:06]} 44. Nb5 {[%emt 0:02:47]} axb3 {[%emt 0:05:32]} 45. axb3 {[%emt 0:00:23]} Qc6 {[%emt 0:08:48]} 46. Nd6+ {[%emt 0:07:09]} Kc7 {[%emt 0:00:11]} 47. Kb2 {[%emt 0:02:59]} Rh8 {[%emt 0:06:17]} 48. Nxf7 {[%emt 0:03:06]} Ra8 {[%emt 0:00:37]} 49. Rc1 {[%emt 0:01:15]} Ra2+ {[%emt 0:00:54]} 0-1

[Event "Polish Youth 1st League 2022"]
[Site "Lublin"]
[Date "2022.06.27"]
[Round "3.1"]
[White "Kania, Dominik"]
[Black "Madej, Marek"]
[Result "0-1"]
[ECO "C29"]
[WhiteElo "1872"]
[BlackElo "1978"]
[Annotator "RC"]
[PlyCount "102"]
[EventDate "2022.06.24"]
[EventType "team-tourn"]
[EventCountry "POL"]
[SourceTitle "playchess.com"]
[Source "ChessBase"]
[SourceQuality "1"]
[TimeControl "40/5400+30:1800+30"]

1. e4 {[%emt 0:02:01]} e5 {[%emt 0:00:13]} 2. Nc3 {[%emt 0:00:25]} Nf6 {[%emt 0:02:37]} 3. f4 {[%emt 0:00:19]} d5 {[%emt 0:05:46]} 4. fxe5 {[%emt 0:00:28]} Nxe4 {[%emt 0:00:07]} 5. Qf3 {[%emt 0:00:38]} Nc6 {[%emt 0:14:12]} 6. Bb5 {[%emt 0:03:45]} Nxc3 {[%emt 0:00:13]} 7. dxc3 {[%emt 0:00:06]} Be7 {[%emt 0:05:59]} 8. Bf4 {[%emt 0:02:14]} Be6 {[%emt 0:08:57]} 9. O-O-O {[%emt 0:02:34]} Qd7 {[%emt 0:03:15]} 10. Qg3 {[%emt 0:06:23]} a6 {[%emt 0:09:52]} 11. Bd3 {[%emt 0:06:47]} g5 {[%emt 0:03:29]} 12. Be3 {[%emt 0:02:01]} O-O-O {[%emt 0:00:15]} 13. Nf3 {[%emt 0:11:42]} g4 {[%emt 0:08:43]} 14. Ng5 {[%emt 0:12:02]} d4 {[%emt 0:11:05]} 15. cxd4 {[%emt 0:06:35]} Nxd4 {[%emt 0:02:00]} 16. Nxf7 {[%emt 0:18:16]} Bxf7 {[%emt 0:03:48]} 17. Bxd4 {[%emt 0:00:08]} Qe6 {[%emt 0:01:18]} 18. Bc3 {[%emt 0:03:38]} Qxa2 {[%emt 0:01:05]} 19. Kd2 {[%emt 0:11:01]} Bg5+ {[%emt 0:04:45]} 20. Ke2 {[%emt 0:00:18]} Be6 {[%emt 0:00:18]} 21. Qf2 {[%emt 0:04:47]} Qd5 {[%emt 0:09:50]} 22. Bf5 {[%emt 0:01:12]} Qc4+ {[%emt 0:00:01]} 23. Rd3 {[%emt 0:01:31]} Kb8 {[%emt 0:00:01]} 24. Bxe6 {[%emt 0:00:16]} Qe4+ {[%emt 0:03:19]} 25. Kf1 {[%emt 0:01:52]} Rxd3 {[%emt 0:00:21]} 26. cxd3 {[%emt 0:01:30]} Qxd3+ {[%emt 0:00:01]} 27. Qe2 {[%emt 0:00:32]} Rf8+ {[%emt 0:00:38]} 28. Ke1 {[%emt 0:00:16]} Bh4+ {[%emt 0:00:11]} 29. g3 {[%emt 0:00:07]} Qb1+ {[%emt 0:00:03]} 30. Qd1 {[%emt 0:00:46]} Qe4+ {[%emt 0:00:01]} 31. Qe2 {[%emt 0:00:44]} Qxh1+ {[%emt 0:00:10]} 32. Kd2 {[%emt 0:00:09]} Bg5+ {[%emt 0:00:39]} 33. Kc2 {[%emt 0:00:10]} Qf3 {[%emt 0:00:55]} 34. Qc4 {[%emt 0:00:25]} Qf2+ {[%emt 0:01:27]} 35. Kb3 {[%emt 0:00:08]} Qb6+ {[%emt 0:00:12]} 36. Ka2 {[%emt 0:00:09]} h5 {[%emt 0:01:10]} 37. Bf7 {[%emt 0:01:14]} Qb5 {[%emt 0:01:14]} 38. Qxb5 {[%emt 0:00:35]} axb5 {[%emt 0:00:01]} 39. e6 {[%emt 0:00:25]} Be7 {[%emt 0:00:14]} 40. Bxh5 {[%emt 0:00:00]} Rf2 {[%emt 0:00:00]} 41. Bxg4 {[%emt 0:02:12]} Rxh2 {[%emt 0:01:37]} 42. Bf5 {[%emt 0:05:14]} Rg2 {[%emt 0:01:49]} 43. g4 {[%emt 0:04:45]} Ka7 {[%emt 0:01:18]} 44. Bd4+ {[%emt 0:02:18]} c5 {[%emt 0:00:09]} 45. Be3 {[%emt 0:00:41]} Ka6 {[%emt 0:00:46]} 46. g5 {[%emt 0:01:56]} c4 {[%emt 0:02:30]} 47. Kb1 {[%emt 0:01:39]} b4 {[%emt 0:02:47]} 48. g6 {[%emt 0:02:38]} b3 {[%emt 0:03:17]} 49. Bd4 {[%emt 0:04:43]} Rd2 {[%emt 0:02:36]} 50. Kc1 {[%emt 0:05:23]} Rxd4 {[%emt 0:00:07]} 51. g7 {[%emt 0:00:02]} Bg5+ {[%emt 0:00:05]} 0-1

[Event "Polish Youth 1st League 2022"]
[Site "Lublin"]
[Date "2022.06.27"]
[Round "3.2"]
[White "Nowak, Filip"]
[Black "Lysakowski, Kamil"]
[Result "1-0"]
[ECO "B92"]
[WhiteElo "1819"]
[BlackElo "1859"]
[Annotator "NA RC"]
[PlyCount "57"]
[EventDate "2022.06.24"]
[EventType "team-tourn"]
[EventCountry "POL"]
[SourceTitle "playchess.com"]
[Source "ChessBase"]
[SourceQuality "1"]
[TimeControl "40/5400+30:1800+30"]

1. e4 {[%emt 0:00:04]} c5 {[%emt 0:00:03]} 2. Nf3 {[%emt 0:00:08]} d6 {[%emt 0:00:05]} 3. d4 {[%emt 0:00:08]} cxd4 {[%emt 0:00:03]} 4. Nxd4 {[%emt 0:00:08]} Nf6 {[%emt 0:00:03]} 5. Nc3 {[%emt 0:00:09]} a6 {[%emt 0:00:04]} 6. Be2 {[%emt 0:00:18]} e5 {[%emt 0:00:06]} 7. Nb3 {[%emt 0:00:12]} Be7 {[%emt 0:00:04]} 8. O-O {[%emt 0:00:27]} O-O {[%emt 0:00:03]} 9. Re1 {[%emt 0:00:17]} Be6 {[%emt 0:00:57]} 10. Bf3 {[%emt 0:00:07]} Nbd7 {[%emt 0:01:44]} 11. a4 {[%emt 0:00:18]} Rc8 {[%emt 0:04:44]} 12. a5 {[%emt 0:00:36]} Qc7 {[%emt 0:00:33]} 13. Be3 {[%emt 0:02:09]} h6 {[%emt 0:12:10]} 14. Nd2 {[%emt 0:04:01]} Nh7 {[%emt 0:07:46]} 15. Nf1 {[%emt 0:05:34]} Bg5 {[%emt 0:02:25]} 16. g3 {[%emt 0:01:32]} Nhf6 {[%emt 0:21:59]} 17. h4 {[%emt 0:03:32]} Bxe3 {[%emt 0:00:13]} 18. Nxe3 {[%emt 0:00:13]} g6 {[%emt 0:03:24]} 19. Qd2 {[%emt 0:05:01]} Rcd8 {[%emt 0:14:31]} 20. Red1 {[%emt 0:10:59]} Nb8 $1 {[%emt 0:00:56]} 21. Ned5 {[%emt 0:04:11]} Bxd5 {[%emt 0:00:26]} 22. Nxd5 {[%emt 0:00:09]} Nxd5 {[%emt 0:00:09]} 23. Qxd5 {[%emt 0:00:29]} Qxc2 {[%emt 0:11:28]} 24. Qxb7 {[%emt 0:03:50]} Rd7 {[%emt 0:02:01]} (24... Nc6 $16 {was worth a try.}) 25. Qb6 {[%emt 0:02:19]} Qc6 {[%emt 0:00:25]} 26. Rac1 {[%emt 0:01:51]} Qxb6 {[%emt 0:12:21]} 27. axb6 {[%emt 0:00:02]} Rb7 $18 {[%emt 0:00:04]} 28. Rxd6 {[%emt 0:00:30]} Re8 {[%emt 0:02:52]} 29. Rc7 {[%emt 0:03:18]} 1-0

[Event "Polish Youth 1st League 2022"]
[Site "Lublin"]
[Date "2022.06.27"]
[Round "3.3"]
[White "Musial, Igor"]
[Black "Grot, Blazej"]
[Result "1/2-1/2"]
[ECO "B47"]
[WhiteElo "1699"]
[BlackElo "1819"]
[Annotator "NA RC"]
[PlyCount "67"]
[EventDate "2022.06.24"]
[EventType "team-tourn"]
[EventCountry "POL"]
[SourceTitle "playchess.com"]
[Source "ChessBase"]
[SourceQuality "1"]
[TimeControl "40/5400+30:1800+30"]

1. e4 {[%emt 0:00:01]} c5 {[%emt 0:00:07]} 2. Nf3 {[%emt 0:00:05]} e6 {[%emt 0:00:07]} 3. d4 {[%emt 0:00:22]} cxd4 {[%emt 0:00:06]} 4. Nxd4 {[%emt 0:00:08]} Nc6 {[%emt 0:00:10]} 5. Nc3 {[%emt 0:00:06]} Qc7 {[%emt 0:00:12]} 6. Qd3 {[%emt 0:00:16]} a6 {[%emt 0:01:17]} 7. Nxc6 {[%emt 0:00:07]} dxc6 {[%emt 0:02:39]} 8. Qg3 {[%emt 0:24:32]} Qxg3 {[%emt 0:15:57]} 9. hxg3 {[%emt 0:00:49]} e5 {[%emt 0:01:58]} 10. Be3 {[%emt 0:25:47]} b5 {[%emt 0:07:10]} 11. f3 {[%emt 0:13:32]} Be6 {[%emt 0:04:36]} 12. a4 $14 {[%emt 0:05:47]} b4 {[%emt 0:04:09] [#]} 13. Nb1 $1 {[%emt 0:00:37]} a5 {[%emt 0:10:41]} 14. Nd2 {[%emt 0:01:12]} Bd6 {[%emt 0:04:35]} 15. Nc4 {[%emt 0:01:43]} Bc7 {[%emt 0:09:39]} 16. O-O-O {[%emt 0:04:04]} Rd8 {[%emt 0:04:35]} 17. Be2 {[%emt 0:02:38]} Nf6 {[%emt 0:04:08]} 18. Rxd8+ {[%emt 0:07:26]} Kxd8 {[%emt 0:00:42]} 19. Rd1+ {[%emt 0:03:26]} Kc8 {[%emt 0:00:23]} 20. g4 {[%emt 0:04:18]} h6 {[%emt 0:02:21]} 21. Nd6+ {[%emt 0:03:23]} Bxd6 {[%emt 0:01:15]} 22. Rxd6 {[%emt 0:00:04]} Kc7 {[%emt 0:00:11]} 23. Rd1 {[%emt 0:00:08]} Nd7 {[%emt 0:02:40]} 24. g3 {[%emt 0:00:29]} f6 {[%emt 0:00:30]} 25. b3 {[%emt 0:00:38]} Rb8 {[%emt 0:08:30]} 26. f4 {[%emt 0:00:57]} Rf8 {[%emt 0:01:49]} 27. Kb2 {[%emt 0:00:44]} Rb8 {[%emt 0:00:43]} 28. Kc1 {[%emt 0:00:19]} Rf8 {[%emt 0:00:09]} 29. Kb2 {[%emt 0:00:31]} Rb8 {[%emt 0:00:04]} 30. Kb1 {[%emt 0:00:18]} Rf8 {[%emt 0:00:36]} 31. Kc1 {[%emt 0:00:24]} Rg8 {[%emt 0:01:09]} 32. Kb1 {[%emt 0:00:42]} Rb8 {[%emt 0:00:19]} 33. Ka1 {[%emt 0:00:12]} Rf8 {[%emt 0:00:12]} 34. Kb2 1/2-1/2